[Event "NJSK 2018 Jeugd C"]
[Site "Assen, Netherlands"]
[Date "2018.05.01"]
[Round "3.3"]
[White "Cchung, Nyuk Lyn"]
[Black "Pham, Khoi"]
[Result "0-1"]
[TimeControl "40/90m+30sec/move"]
[WhiteElo "1796"]
[BlackElo "1983"]

1. e4 {[%clk 01:30:57]} {[%emt 00:00:03]} c5 {[%clk 01:30:54]} {[%emt
00:00:06]} 2. Nf3 {[%clk 01:31:19]} {[%emt 00:00:06]} d6 {[%clk 01:31:21]}
{[%emt 00:00:05]} 3. d4 {[%clk 01:31:39]} {[%emt 00:00:10]} cxd4 {[%clk
01:31:45]} {[%emt 00:00:07]} 4. Nxd4 {[%clk 01:32:03]} {[%emt 00:00:04]} Nf6
{[%clk 01:32:06]} {[%emt 00:00:09]} 5. Nc3 {[%clk 01:32:27]} {[%emt 00:00:05]}
a6 {[%clk 01:32:29]} {[%emt 00:00:09]} 6. Bg5 {[%clk 01:32:52]} {[%emt
00:00:04]} e6 {[%clk 01:32:45]} {[%emt 00:00:14]} 7. f4 {[%clk 01:33:07]}
{[%emt 00:00:14]} Nbd7 {[%clk 01:33:05]} {[%emt 00:00:11]} 8. Qf3 {[%clk
01:33:04]} {[%emt 00:00:32]} Qc7 {[%clk 01:33:15]} {[%emt 00:00:21]} 9. O-O-O
{[%clk 01:33:01]} {[%emt 00:00:33]} b5 {[%clk 01:33:30]} {[%emt 00:00:15]} 10.
g4 {[%clk 01:33:05]} {[%emt 00:00:26]} Bb7 {[%clk 01:33:02]} {[%emt 00:00:58]}
11. Bxf6 {[%clk 01:32:28]} {[%emt 00:01:06]} Nxf6 {[%clk 01:33:05]} {[%emt
00:00:27]} 12. g5 {[%clk 01:32:46]} {[%emt 00:00:11]} b4 {[%clk 01:32:40]}
{[%emt 00:00:57]} 13. gxf6 {[%clk 01:12:53]} {[%emt 00:20:22]} bxc3 {[%clk
01:32:51]} {[%emt 00:00:19]} 14. Rg1 {[%clk 01:07:22]} {[%emt 00:06:01]} cxb2+
{[%clk 01:30:26]} {[%emt 00:02:55]} 15. Kb1 {[%clk 01:07:27]} {[%emt 00:00:25]}
gxf6 {[%clk 01:30:40]} {[%emt 00:00:16]} 16. Bh3 {[%clk 00:50:49]} {[%emt
00:17:07]} f5 {[%clk 01:23:45]} {[%emt 00:07:26]} 17. Qh5 {[%clk 00:30:09]}
{[%emt 00:20:41]} Bxe4 {[%clk 01:19:04]} {[%emt 00:05:12]} 18. Rge1 {[%clk
00:30:17]} {[%emt 00:00:50]} Qc5 {[%clk 00:59:14]} {[%emt 00:20:21]} 19. Bxf5
{[%clk 00:24:36]} {[%emt 00:06:11]} Bxf5 {[%clk 00:44:08]} {[%emt 00:15:35]} 20.
Nxf5 {[%clk 00:12:25]} {[%emt 00:12:41]} O-O-O {[%clk 00:42:23]} {[%emt
00:02:16]} 21. Ng3 {[%clk 00:11:21]} {[%emt 00:01:32]} Qxh5 {[%clk 00:41:53]}
{[%emt 00:01:01]} 22. Nxh5 {[%clk 00:11:50]} {[%emt 00:00:02]} Bh6 {[%clk
00:39:17]} {[%emt 00:03:07]} 23. Rd3 {[%clk 00:10:30]} {[%emt 00:01:50]} Rhg8
{[%clk 00:35:43]} {[%emt 00:04:04]} 24. Re4 {[%clk 00:07:56]} {[%emt 00:03:03]}
Rg2 {[%clk 00:33:54]} {[%emt 00:02:18]} 25. Rc3+ {[%clk 00:06:40]} {[%emt
00:01:47]} Kd7 {[%clk 00:31:20]} {[%emt 00:03:04]} 26. f5 {[%clk 00:05:03]}
{[%emt 00:02:07]} Rxh2 {[%clk 00:30:52]} {[%emt 00:00:58]} 27. fxe6+ {[%clk
00:03:25]} {[%emt 00:02:08]} fxe6 {[%clk 00:31:15]} {[%emt 00:00:07]} 28. Nf6+
{[%clk 00:03:37]} {[%emt 00:00:19]} Ke7 {[%clk 00:31:36]} {[%emt 00:00:08]} 29.
Nd5+ {[%clk 00:04:04]} {[%emt 00:00:03]} Kf8 {[%clk 00:27:06]} {[%emt
00:05:01]} 30. Rf3+ {[%clk 00:03:26]} {[%emt 00:01:08]} Kg8 {[%clk 00:24:33]}
{[%emt 00:03:03]} 31. Nf6+ {[%clk 00:03:29]} {[%emt 00:00:26]} Kh8 {[%clk
00:24:45]} {[%emt 00:00:19]} 32. Kxb2 {[%clk 00:03:54]} {[%emt 00:00:06]} Bg7
{[%clk 00:24:30]} {[%emt 00:00:45]} 33. Rxe6 {[%clk 00:03:53]} {[%emt
00:00:31]} Rf8 {[%clk 00:24:08]} {[%emt 00:00:53]} 34. Kc1 {[%clk 00:01:38]}
{[%emt 00:02:45]} Rh6 {[%clk 00:22:48]} {[%emt 00:01:49]} 35. Nd7 {[%clk
00:01:35]} {[%emt 00:00:33]} Rxf3 {[%clk 00:22:01]} {[%emt 00:01:17]} 36. Re8
{[%clk 00:01:55]} {[%emt 00:00:10]} Bf8 {[%clk 00:22:23]} {[%emt 00:00:08]} 37.
Nxf8 {[%clk 00:02:19]} {[%emt 00:00:06]} Kg7 {[%clk 00:21:50]} {[%emt
00:01:03]} 38. Nd7 {[%clk 00:02:42]} {[%emt 00:00:07]} Rh1+ {[%clk 00:21:20]}
{[%emt 00:01:00]} 39. Kb2 {[%clk 00:03:06]} {[%emt 00:00:06]} Rf7 {[%clk
00:21:02]} {[%emt 00:00:47]} 40. Nb6 {[%clk 00:03:32]} {[%emt 00:00:04]} Rb7
{[%clk 00:21:24]} {[%emt 00:00:09]} 0-1

[Event "NJSK 2018 Jeugd C"]
[Site "Assen, Netherlands"]
[Date "2018.05.01"]
[Round "3.4"]
[White "Boghossian, Wahe"]
[Black "Nguyen, Lucas"]
[Result "0-1"]
[TimeControl "40/90m+30sec/move"]
[WhiteElo "1748"]
[BlackElo "1919"]

1. e4 {[%clk 01:30:56]} {[%emt 00:00:03]} c5 {[%clk 01:30:57]} {[%emt
00:00:04]} 2. Nf3 {[%clk 01:31:21]} {[%emt 00:00:04]} Nc6 {[%clk 01:31:24]}
{[%emt 00:00:04]} 3. d4 {[%clk 01:31:33]} {[%emt 00:00:18]} cxd4 {[%clk
01:31:49]} {[%emt 00:00:05]} 4. Nxd4 {[%clk 01:31:59]} {[%emt 00:00:03]} g6
{[%clk 01:32:15]} {[%emt 00:00:04]} 5. Nc3 {[%clk 01:32:06]} {[%emt 00:00:23]}
Bg7 {[%clk 01:32:40]} {[%emt 00:00:06]} 6. Be3 {[%clk 01:32:11]} {[%emt
00:00:25]} Nf6 {[%clk 01:33:04]} {[%emt 00:00:06]} 7. f3 {[%clk 01:31:19]}
{[%emt 00:01:22]} O-O {[%clk 01:33:27]} {[%emt 00:00:07]} 8. Qd2 {[%clk
01:30:55]} {[%emt 00:00:53]} d5 {[%clk 01:33:46]} {[%emt 00:00:11]} 9. Nxc6
{[%clk 01:28:12]} {[%emt 00:03:14]} bxc6 {[%clk 01:34:09]} {[%emt 00:00:07]} 10.
O-O-O {[%clk 01:28:32]} {[%emt 00:00:09]} Be6 {[%clk 01:31:08]} {[%emt
00:03:31]} 11. Bh6 {[%clk 01:25:44]} {[%emt 00:03:18]} dxe4 {[%clk 01:27:55]}
{[%emt 00:03:44]} 12. Bxg7 {[%clk 01:24:36]} {[%emt 00:01:38]} Kxg7 {[%clk
01:28:06]} {[%emt 00:00:19]} 13. fxe4 {[%clk 01:24:43]} {[%emt 00:00:22]} Qa5
{[%clk 01:26:15]} {[%emt 00:02:21]} 14. a3 {[%clk 01:23:37]} {[%emt 00:01:37]}
Rab8 {[%clk 01:23:06]} {[%emt 00:03:39]} 15. Bd3 {[%clk 01:18:34]} {[%emt
00:05:33]} Qb6 {[%clk 01:16:33]} {[%emt 00:07:02]} 16. b3 {[%clk 01:13:50]}
{[%emt 00:05:14]} Ng4 {[%clk 01:03:25]} {[%emt 00:13:38]} 17. Rdf1 {[%clk
00:57:25]} {[%emt 00:16:54]} Bxb3 {[%clk 01:01:26]} {[%emt 00:02:29]} 18. cxb3
{[%clk 00:55:20]} {[%emt 00:02:35]} Qxb3 {[%clk 01:01:50]} {[%emt 00:00:06]} 19.
Nb1 {[%clk 00:54:14]} {[%emt 00:01:35]} Rfd8 {[%clk 01:01:00]} {[%emt
00:01:20]} 20. Nc3 {[%clk 00:35:40]} {[%emt 00:19:05]} Qxa3+ {[%clk 01:00:26]}
{[%emt 00:01:05]} 21. Kd1 {[%clk 00:34:12]} {[%emt 00:01:58]} Ne5 {[%clk
01:00:29]} {[%emt 00:00:25]} 22. Rf3 {[%clk 00:30:38]} {[%emt 00:04:05]} Nxf3
{[%clk 01:00:44]} {[%emt 00:00:16]} 23. gxf3 {[%clk 00:30:57]} {[%emt
00:00:11]} Qa1+ {[%clk 01:00:55]} 0-1

[Event "NJSK 2018 Jeugd C"]
[Site "Assen, Netherlands"]
[Date "2018.05.01"]
[Round "3.5"]
[White "Van Foreest, Nanne"]
[Black "Maters, Arthur"]
[Result "0-1"]
[TimeControl "40/90m+30sec/move"]
[WhiteElo "1482"]
[BlackElo "1895"]

1. e4 {[%clk 01:30:59]} c5 {[%clk 01:30:56]} {[%emt 00:00:05]} 2. Nf3 {[%clk
01:31:16]} {[%emt 00:00:12]} d6 {[%clk 01:31:22]} {[%emt 00:00:05]} 3. d4
{[%clk 01:31:43]} {[%emt 00:00:03]} cxd4 {[%clk 01:31:47]} {[%emt 00:00:05]} 4.
Nxd4 {[%clk 01:32:09]} {[%emt 00:00:03]} Nf6 {[%clk 01:32:11]} {[%emt
00:00:07]} 5. Nc3 {[%clk 01:32:34]} {[%emt 00:00:04]} a6 {[%clk 01:32:38]}
{[%emt 00:00:04]} 6. Bg5 {[%clk 01:32:56]} {[%emt 00:00:08]} e6 {[%clk
01:33:03]} {[%emt 00:00:06]} 7. f4 {[%clk 01:33:23]} {[%emt 00:00:02]} h6
{[%clk 01:33:29]} {[%emt 00:00:04]} 8. Bh4 {[%clk 01:33:22]} {[%emt 00:00:31]}
Qb6 {[%clk 01:33:53]} {[%emt 00:00:06]} 9. Nb3 {[%clk 01:33:47]} {[%emt
00:00:05]} Qe3+ {[%clk 01:34:10]} {[%emt 00:00:14]} 10. Be2 {[%clk 01:33:29]}
{[%emt 00:00:47]} Nxe4 {[%clk 01:27:19]} {[%emt 00:07:20]} 11. Nxe4 {[%clk
01:31:51]} {[%emt 00:02:08]} Qxf4 {[%clk 01:21:41]} {[%emt 00:06:08]} 12. Nxd6+
{[%clk 01:30:14]} {[%emt 00:02:07]} Qxd6 {[%clk 01:21:37]} {[%emt 00:00:34]} 13.
Qxd6 {[%clk 01:27:58]} {[%emt 00:02:47]} Bxd6 {[%clk 01:21:59]} {[%emt
00:00:08]} 14. Rd1 {[%clk 01:28:25]} {[%emt 00:00:02]} Be7 {[%clk 01:21:29]}
{[%emt 00:00:59]} 15. Bxe7 {[%clk 01:28:17]} {[%emt 00:00:40]} Kxe7 {[%clk
01:21:51]} {[%emt 00:00:08]} 16. O-O {[%clk 01:28:02]} {[%emt 00:00:45]} b6
{[%clk 01:17:54]} {[%emt 00:04:28]} 17. Bf3 {[%clk 01:27:16]} {[%emt 00:01:16]}
Ra7 {[%clk 01:18:15]} {[%emt 00:00:09]} 18. Nd4 {[%clk 01:27:22]} {[%emt
00:00:24]} Bb7 {[%clk 01:17:06]} {[%emt 00:01:39]} 19. Bxb7 {[%clk 01:27:14]}
{[%emt 00:00:39]} Rxb7 {[%clk 01:17:30]} {[%emt 00:00:07]} 20. Rfe1 {[%clk
01:26:33]} {[%emt 00:01:11]} g6 {[%clk 01:16:26]} {[%emt 00:01:33]} 21. h4
{[%clk 01:18:38]} {[%emt 00:08:24]} Rd7 {[%clk 01:13:26]} {[%emt 00:03:29]} 22.
Rd2 {[%clk 01:16:39]} {[%emt 00:02:30]} Rhd8 {[%clk 01:13:28]} {[%emt
00:00:28]} 23. c3 {[%clk 01:17:04]} {[%emt 00:00:05]} Kf6 {[%clk 00:58:51]}
{[%emt 00:15:08]} 24. Kh2 {[%clk 01:14:45]} {[%emt 00:02:49]} Kg7 {[%clk
00:57:20]} {[%emt 00:02:00]} 25. Kg3 {[%clk 01:13:54]} {[%emt 00:01:22]} Rd5
{[%clk 00:51:48]} {[%emt 00:06:01]} 26. Rde2 {[%clk 01:13:30]} {[%emt
00:00:55]} Rc8 {[%clk 00:48:32]} {[%emt 00:03:46]} 27. Re5 {[%clk 01:12:57]}
{[%emt 00:01:02]} Rxe5 {[%clk 00:47:38]} {[%emt 00:01:25]} 28. Rxe5 {[%clk
01:13:04]} {[%emt 00:00:23]} Nc6 {[%clk 00:48:02]} {[%emt 00:00:05]} 29. Nxc6
{[%clk 01:13:17]} {[%emt 00:00:18]} Rxc6 {[%clk 00:48:25]} {[%emt 00:00:07]} 30.
Kf3 {[%clk 01:12:59]} {[%emt 00:00:48]} f6 {[%clk 00:47:43]} {[%emt 00:01:12]}
31. Re2 {[%clk 01:13:17]} {[%emt 00:00:12]} h5 {[%clk 00:47:06]} {[%emt
00:01:06]} 32. Rd2 {[%clk 01:12:37]} {[%emt 00:01:11]} f5 {[%clk 00:46:38]}
{[%emt 00:00:58]} 33. Kf4 {[%clk 01:12:39]} {[%emt 00:00:28]} Kf6 {[%clk
00:47:00]} {[%emt 00:00:08]} 34. Ke3 {[%clk 01:12:32]} {[%emt 00:00:36]} e5
{[%clk 00:46:23]} {[%emt 00:01:08]} 35. Rd8 {[%clk 01:12:53]} {[%emt 00:00:09]}
Ke7 {[%clk 00:46:29]} {[%emt 00:00:24]} 36. Rd5 {[%clk 01:13:09]} {[%emt
00:00:14]} Ke6 {[%clk 00:46:51]} {[%emt 00:00:08]} 37. Rd8 {[%clk 01:13:33]}
{[%emt 00:00:06]} Rd6 {[%clk 00:46:58]} {[%emt 00:00:22]} 38. Re8+ {[%clk
01:13:35]} {[%emt 00:00:28]} Kf6 {[%clk 00:47:21]} {[%emt 00:00:08]} 39. Ra8
{[%clk 01:13:49]} {[%emt 00:00:16]} a5 {[%clk 00:47:34]} {[%emt 00:00:17]} 40.
Ra6 {[%clk 01:14:05]} {[%emt 00:00:14]} Ke6 {[%clk 00:42:55]} {[%emt 00:05:09]}
41. Ra8 {[%clk 01:13:56]} {[%emt 00:00:39]} Kd7 {[%clk 00:36:16]} {[%emt
00:07:08]} 42. Ra7+ {[%clk 01:14:06]} {[%emt 00:00:20]} Kc6 {[%clk 00:36:34]}
{[%emt 00:00:12]} 43. Re7 {[%clk 01:14:29]} {[%emt 00:00:08]} Kd5 {[%clk
00:35:26]} {[%emt 00:01:38]} 44. c4+ {[%clk 01:14:54]} {[%emt 00:00:05]} Kxc4
{[%clk 00:35:49]} {[%emt 00:00:07]} 45. Rxe5 {[%clk 01:15:22]} {[%emt
00:00:01]} Rd3+ {[%clk 00:34:35]} {[%emt 00:01:44]} 46. Kf2 {[%clk 01:15:24]}
{[%emt 00:00:28]} Rd2+ {[%clk 00:34:04]} {[%emt 00:00:59]} 47. Re2 {[%clk
01:14:58]} {[%emt 00:00:58]} Kd3 {[%clk 00:32:50]} {[%emt 00:01:44]} 48. Rxd2+
{[%clk 01:15:15]} {[%emt 00:00:14]} Kxd2 {[%clk 00:33:16]} {[%emt 00:00:04]} 49.
Kf3 {[%clk 01:15:34]} {[%emt 00:00:11]} Kc2 {[%clk 00:32:42]} {[%emt 00:01:03]}
50. b3 {[%clk 01:16:00]} {[%emt 00:00:04]} Kb2 {[%clk 00:33:03]} {[%emt
00:00:10]} 51. Kf4 {[%clk 01:16:26]} {[%emt 00:00:03]} Kxa2 {[%clk 00:33:27]}
{[%emt 00:00:06]} 52. Kg5 {[%clk 01:16:52]} {[%emt 00:00:04]} Kxb3 {[%clk
00:33:52]} {[%emt 00:00:05]} 53. Kxg6 {[%clk 01:17:16]} {[%emt 00:00:07]} a4
{[%clk 00:34:17]} {[%emt 00:00:05]} 54. Kxh5 {[%clk 01:17:41]} {[%emt
00:00:04]} a3 {[%clk 00:34:40]} {[%emt 00:00:07]} 55. Kg6 {[%clk 01:18:05]}
{[%emt 00:00:06]} a2 {[%clk 00:35:06]} {[%emt 00:00:04]} 0-1

[Event "NJSK 2018 Jeugd C"]
[Site "Assen, Netherlands"]
[Date "2018.05.01"]
[Round "3.6"]
[White "Shakhverdian, William"]
[Black "Yeh, Timo"]
[Result "1-0"]
[TimeControl "40/90m+30sec/move"]
[WhiteElo "1777"]
[BlackElo "1729"]

1. d4 {[%clk 01:30:59]} {[%emt 14:51:21]} d5 {[%clk 01:30:56]} {[%emt
00:00:04]} 2. c4 {[%clk 01:31:24]} {[%emt 00:00:05]} e6 {[%clk 01:31:22]}
{[%emt 00:00:04]} 3. Nf3 {[%clk 01:31:40]} {[%emt 00:00:13]} Nf6 {[%clk
01:31:48]} {[%emt 00:00:04]} 4. g3 {[%clk 01:31:10]} {[%emt 00:01:01]} c5
{[%clk 01:31:07]} {[%emt 00:01:11]} 5. cxd5 {[%clk 01:29:01]} {[%emt 00:02:39]}
exd5 {[%clk 01:31:24]} {[%emt 00:00:13]} 6. Bg2 {[%clk 01:29:10]} {[%emt
00:00:21]} Nc6 {[%clk 01:31:19]} {[%emt 00:00:35]} 7. O-O {[%clk 01:28:36]}
{[%emt 00:01:03]} Bf5 {[%clk 01:29:46]} {[%emt 00:02:03]} 8. Bg5 {[%clk
01:26:08]} {[%emt 00:02:59]} h6 {[%clk 01:26:51]} {[%emt 00:03:25]} 9. Bxf6
{[%clk 01:26:17]} {[%emt 00:00:21]} Qxf6 {[%clk 01:26:55]} {[%emt 00:00:26]} 10.
Nc3 {[%clk 01:24:40]} {[%emt 00:02:07]} Be4 {[%clk 01:14:20]} {[%emt 00:13:04]}
11. dxc5 {[%clk 01:20:59]} {[%emt 00:04:11]} O-O-O {[%clk 01:09:07]} {[%emt
00:05:43]} 12. Qa4 {[%clk 01:20:58]} {[%emt 00:00:31]} Bxc5 {[%clk 01:06:27]}
{[%emt 00:03:11]} 13. Nxe4 {[%clk 01:18:08]} {[%emt 00:03:19]} dxe4 {[%clk
01:06:42]} {[%emt 00:00:15]} 14. Qxe4 {[%clk 01:18:24]} {[%emt 00:00:14]} Rhe8
{[%clk 01:05:42]} {[%emt 00:01:29]} 15. Qc4 {[%clk 01:18:40]} {[%emt 00:00:14]}
Bd4 {[%clk 00:58:33]} {[%emt 00:07:40]} 16. Rab1 {[%clk 01:17:09]} {[%emt
00:02:01]} Qe6 {[%clk 00:57:40]} {[%emt 00:01:22]} 17. Qxe6+ {[%clk 01:17:27]}
{[%emt 00:00:13]} fxe6 {[%clk 00:57:35]} {[%emt 00:00:35]} 18. e3 {[%clk
01:12:58]} {[%emt 00:04:58]} Bf6 {[%clk 00:57:45]} {[%emt 00:00:21]} 19. Rfc1
{[%clk 01:09:48]} {[%emt 00:03:40]} Kb8 {[%clk 00:52:20]} {[%emt 00:05:55]} 20.
b4 {[%clk 01:06:59]} {[%emt 00:03:18]} Ne5 {[%clk 00:51:44]} {[%emt 00:01:06]}
21. Nd4 {[%clk 01:00:39]} {[%emt 00:06:50]} Nd3 {[%clk 00:48:41]} {[%emt
00:03:34]} 22. Rd1 {[%clk 01:00:29]} {[%emt 00:00:39]} Bxd4 {[%clk 00:47:57]}
{[%emt 00:01:15]} 23. Rxd3 {[%clk 01:00:24]} {[%emt 00:00:35]} Bb6 {[%clk
00:48:20]} {[%emt 00:00:07]} 24. Rc3 {[%clk 00:50:39]} {[%emt 00:10:14]} Rd2
{[%clk 00:44:37]} {[%emt 00:04:13]} 25. a4 {[%clk 00:50:56]} {[%emt 00:00:14]}
Rf8 {[%clk 00:40:16]} {[%emt 00:04:51]} 26. Rf1 {[%clk 00:49:43]} {[%emt
00:01:42]} Bc7 {[%clk 00:39:58]} {[%emt 00:00:48]} 27. Bh3 {[%clk 00:49:17]}
{[%emt 00:00:55]} Re8 {[%clk 00:38:45]} {[%emt 00:01:44]} 28. Rfc1 {[%clk
00:48:21]} {[%emt 00:01:27]} Re7 {[%clk 00:39:01]} {[%emt 00:00:13]} 29. Bxe6
{[%clk 00:45:12]} {[%emt 00:03:39]} a5 {[%clk 00:35:45]} {[%emt 00:03:47]} 30.
b5 {[%clk 00:32:57]} {[%emt 00:12:45]} Rxe6 {[%clk 00:31:54]} {[%emt 00:04:21]}
31. Rxc7 {[%clk 00:33:21]} {[%emt 00:00:06]} g5 {[%clk 00:31:18]} {[%emt
00:01:06]} 32. Rf7 {[%clk 00:29:53]} {[%emt 00:03:58]} Ra2 {[%clk 00:29:31]}
{[%emt 00:02:16]} 33. Rcc7 {[%clk 00:29:26]} {[%emt 00:00:55]} Rb6 {[%clk
00:29:41]} {[%emt 00:00:22]} 34. Rc4 {[%clk 00:29:50]} {[%emt 00:00:06]} Rb2
{[%clk 00:29:39]} {[%emt 00:00:33]} 35. Rd4 {[%clk 00:25:38]} {[%emt 00:04:41]}
Re6 {[%clk 00:28:35]} {[%emt 00:01:34]} 36. Rfd7 {[%clk 00:18:58]} {[%emt
00:07:11]} Ra2 {[%clk 00:26:10]} {[%emt 00:02:55]} 37. Rf7 {[%clk 00:16:33]}
{[%emt 00:02:54]} Rb2 {[%clk 00:26:15]} {[%emt 00:00:25]} 38. h4 {[%clk
00:15:49]} {[%emt 00:01:15]} Rb4 {[%clk 00:23:09]} {[%emt 00:03:36]} 39. Rfd7
{[%clk 00:10:39]} {[%emt 00:05:40]} Rb2 {[%clk 00:21:19]} {[%emt 00:02:20]} 40.
hxg5 {[%clk 00:10:46]} {[%emt 00:00:23]} hxg5 {[%clk 00:21:46]} {[%emt
00:00:03]} 41. R7d6 {[%clk 00:09:45]} {[%emt 00:01:30]} Re5 {[%clk 00:19:52]}
{[%emt 00:02:24]} 42. b6 {[%clk 00:08:35]} {[%emt 00:01:40]} Rc5 {[%clk
00:19:58]} {[%emt 00:00:24]} 43. Rd8+ {[%clk 00:02:26]} {[%emt 00:06:39]} Rc8
{[%clk 00:20:18]} {[%emt 00:00:09]} 44. Rxc8+ {[%clk 00:02:05]} {[%emt
00:00:52]} Kxc8 {[%clk 00:20:43]} {[%emt 00:00:05]} 45. Rd5 {[%clk 00:02:32]}
{[%emt 00:00:04]} Rxb6 {[%clk 00:20:59]} {[%emt 00:00:14]} 46. Rxa5 {[%clk
00:02:59]} {[%emt 00:00:03]} Rg6 {[%clk 00:21:16]} {[%emt 00:00:12]} 47. Kf1
{[%clk 00:02:34]} {[%emt 00:00:54]} Kc7 {[%clk 00:21:24]} {[%emt 00:00:15]} 48.
Ke2 {[%clk 00:02:51]} {[%emt 00:00:21]} Kc6 {[%clk 00:21:05]} {[%emt 00:00:47]}
49. Kd3 {[%clk 00:01:31]} {[%emt 00:01:50]} b6 {[%clk 00:21:25]} {[%emt
00:00:11]} 50. Rf5 {[%clk 00:01:40]} {[%emt 00:00:21]} g4 {[%clk 00:21:32]}
{[%emt 00:00:23]} 51. Kc4 {[%clk 00:00:58]} {[%emt 00:01:11]} Re6 {[%clk
00:20:54]} {[%emt 00:01:09]} 52. Rf4 {[%clk 00:00:32]} {[%emt 00:00:56]} Rg6
{[%clk 00:21:15]} {[%emt 00:00:09]} 53. Rf5 {[%clk 00:00:54]} {[%emt 00:00:09]}
Re6 {[%clk 00:21:10]} {[%emt 00:00:35]} 54. a5 {[%clk 00:00:39]} {[%emt
00:00:45]} b5+ {[%clk 00:19:28]} {[%emt 00:02:12]} 55. Rxb5 {[%clk 00:00:42]}
{[%emt 00:00:27]} Re4+ {[%clk 00:19:37]} {[%emt 00:00:21]} 56. Kd3 {[%clk
00:01:08]} {[%emt 00:00:03]} Ra4 {[%clk 00:19:58]} {[%emt 00:00:09]} 57. Rf5
{[%clk 00:01:20]} {[%emt 00:00:17]} Ra3+ {[%clk 00:20:12]} {[%emt 00:00:17]} 58.
Kc4 {[%clk 00:01:27]} {[%emt 00:00:20]} Ra4+ {[%clk 00:20:10]} {[%emt
00:00:36]} 59. Kb3 {[%clk 00:01:51]} {[%emt 00:00:04]} Re4 {[%clk 00:20:27]}
{[%emt 00:00:14]} 60. Rf4 {[%clk 00:01:37]} {[%emt 00:00:44]} Re5 {[%clk
00:20:29]} {[%emt 00:00:28]} 61. Rxg4 {[%clk 00:01:44]} {[%emt 00:00:24]} Rxa5
{[%clk 00:20:55]} {[%emt 00:00:04]} 62. Rg6+ {[%clk 00:02:10]} {[%emt
00:00:03]} Kd7 {[%clk 00:21:13]} {[%emt 00:00:11]} 63. Rf6 {[%clk 00:01:49]}
{[%emt 00:00:50]} Ke7 {[%clk 00:21:21]} {[%emt 00:00:23]} 64. Rf4 {[%clk
00:02:11]} {[%emt 00:00:07]} Ke6 {[%clk 00:21:38]} {[%emt 00:00:14]} 65. Kc3
{[%clk 00:02:35]} {[%emt 00:00:06]} Rd5 {[%clk 00:21:55]} {[%emt 00:00:12]} 66.
Kc4 {[%clk 00:02:58]} {[%emt 00:00:06]} Rd8 {[%clk 00:22:13]} {[%emt 00:00:12]}
67. Rd4 {[%clk 00:03:05]} {[%emt 00:00:23]} Rf8 {[%clk 00:22:26]} {[%emt
00:00:18]} 68. Re4+ {[%clk 00:02:59]} {[%emt 00:00:37]} Kd6 {[%clk 00:22:47]}
{[%emt 00:00:09]} 69. Rf4 {[%clk 00:03:23]} {[%emt 00:00:05]} Ra8 {[%clk
00:22:47]} {[%emt 00:00:31]} 70. Kd3 {[%clk 00:03:36]} {[%emt 00:00:15]} Ra3+
{[%clk 00:23:06]} {[%emt 00:00:12]} 71. Ke4 {[%clk 00:04:01]} {[%emt 00:00:04]}
Ke6 {[%clk 00:23:25]} {[%emt 00:00:13]} 72. Rh4 {[%clk 00:04:15]} {[%emt
00:00:15]} Kf6 {[%clk 00:23:16]} {[%emt 00:00:39]} 73. Kf4 {[%clk 00:04:20]}
{[%emt 00:00:23]} Ra2 {[%clk 00:23:04]} {[%emt 00:00:44]} 74. f3 {[%clk
00:04:06]} {[%emt 00:00:44]} Kg6 {[%clk 00:23:08]} {[%emt 00:00:26]} 75. Rg4+
{[%clk 00:04:24]} {[%emt 00:00:11]} Kf6 {[%clk 00:23:30]} {[%emt 00:00:09]} 76.
e4 {[%clk 00:04:47]} {[%emt 00:00:07]} Ra4 {[%clk 00:23:55]} {[%emt 00:00:06]}
77. Rg8 {[%clk 00:04:19]} {[%emt 00:00:56]} Rb4 {[%clk 00:23:27]} {[%emt
00:01:00]} 78. g4 {[%clk 00:04:19]} {[%emt 00:00:29]} Kf7 {[%clk 00:23:47]}
{[%emt 00:00:09]} 79. Ra8 {[%clk 00:04:37]} {[%emt 00:00:11]} Rb7 {[%clk
00:24:07]} {[%emt 00:00:11]} 80. Kf5 {[%clk 00:04:38]} {[%emt 00:00:28]} 1-0